[Event "4NCL 2022-2023"]
[Site "Daventry"]
[Date "2023.03.18"]
[Round "7.39"]
[White "Arnott, Jonathan W"]
[Black "Hunt, Harriet V"]
[Result "0-1"]
[ECO "B21"]
[WhiteElo "2073"]
[BlackElo "2343"]
[Annotator "TA"]
[PlyCount "132"]
[EventDate "2022.10.20"]
[EventType "team-tourn"]
[EventCountry "ENG"]
[SourceTitle "playchess.com"]
[Source "ChessBase"]
[SourceQuality "1"]
[TimeControl "40/6000+30:2400+30"]

{[%evp 14,132,0,8,29,29,46,16,38,24,40,33,38,37,51,47,44,36,40,31,25,0,0,-1,0,-7,-7,-118,-120,-126,-98,-126,-99,-148,-148,-160,-155,-160,-165,-155,-165,-165,-160,-165,-150,-164,-136,-159,-159,-172,-166,-181,-181,-175,-125,-125,-124,-124,-75,-83,-79,-70,-82,-100,-80,-81,-80,-100,-83,-86,-59,-87,-60,-58,-63,-60,-50,-178,-172,-443,-439,-435,-412,-29941,-29942,-5533,-5431,-29964,-29965,-29965,-29966,-29968,-29965,-29965,-29966,-29966,-29967,-29967,-29968,-29968,-29969,-29968,-29970,-29970,-29971,-29972,-29972,-29973,-29974,-29974,-29975,-29976,-29977,-29978,-29973,-29978,-29979,-29980,-29978,-29973,-29972]} 1. e4 {[%emt 0:01:40]} c5 {[%emt 0:00:14]} 2. Be2 {[%emt 0:03:20]} Nc6 {[%emt 0:01:09]} 3. d3 {[%emt 0:00:40]} g6 {[%emt 0:02:31]} 4. f4 {[%emt 0:00:08]} Bg7 {[%emt 0:00:22]} 5. Nf3 {[%emt 0:00:02]} e6 {[%emt 0:01:29]} 6. O-O {[%emt 0:00:09]} Nge7 {[%emt 0:00:13]} 7. c3 {[%emt 0:01:02]} d5 {[%emt 0:06:05]} 8. e5 {[%emt 0:00:58]} b6 {[%emt 0:17:09] B21: Sicilian: 2 f4 and Morra Gambit.} 9. d4 {[%emt 0:03:12]} Bb7 {[%emt 0:02:29] [#]} 10. a4 $146 {[%emt 0:08:39]} ({Predecessor:} 10. Be3 cxd4 11. cxd4 O-O 12. Nc3 f6 13. g4 a6 14. Qd2 b5 15. Rac1 Rc8 16. Nd1 {0-1 Buchenau,F (2294)-Hjartarson,J (2513) Helsingor Xtracon op 2019 (6)}) 10... Rc8 {[%emt 0:05:57] The position is equal.} 11. Na3 {[%emt 0:05:42]} a6 {[%emt 0:01:10]} 12. Nc2 {[%emt 0:00:15]} Na5 {[%emt 0:04:42]} 13. Ne3 {[%emt 0:02:00]} (13. dxc5 {feels hotter.} Nb3 14. c6 Nxc6 15. Ra3) 13... Nf5 {[%emt 0:10:07]} 14. Nxf5 {[%emt 0:05:25]} exf5 {[%emt 0:02:15]} 15. b3 {[%emt 0:12:54]} O-O {[%emt 0:01:26]} 16. Ba3 {[%emt 0:04:41]} Re8 {[%emt 0:01:11]} 17. b4 {[%emt 0:03:53]} cxb4 {[%emt 0:01:45]} 18. cxb4 {[%emt 0:00:08]} Nc4 {[%emt 0:00:29]} 19. Qb3 {[%emt 0:04:13] Prevents Ne3} Bf8 {[%emt 0:03:06]} 20. Bxc4 {[%emt 0:06:05]} (20. Bb2 $11 {remains equal.}) 20... dxc4 $17 {[%emt 0:01:13]} 21. Qc3 {[%emt 0:03:11]} Qd5 {[%emt 0:02:58]} 22. Rf2 {[%emt 0:01:55]} b5 {[%emt 0:00:45]} 23. axb5 {[%emt 0:01:26]} ({Better is} 23. Bb2) 23... axb5 {[%emt 0:00:13]} 24. Bc1 {[%emt 0:00:32]} Ra8 {[%emt 0:01:21] aiming for ...Rxa1.} 25. Rfa2 {[%emt 0:02:06]} Rxa2 {[%emt 0:00:48]} 26. Rxa2 {[%emt 0:00:03] White is weak on the light squares} Ra8 {[%emt 0:00:24]} 27. Rxa8 {[%emt 0:00:33]} Bxa8 {[%emt 0:00:06]} 28. Kf2 {[%emt 0:01:10]} Qe4 {[%emt 0:02:30]} 29. Bd2 {[%emt 0:04:04]} Bd5 {[%emt 0:02:13]} 30. Qe3 {[%emt 0:03:38]} Qc2 {[%emt 0:02:04]} 31. Qc3 {[%emt 0:05:13]} Qd1 {[%emt 0:01:47]} 32. Ne1 {[%emt 0:01:22]} Be4 {[%emt 0:03:41]} 33. Qe3 {[%emt 0:03:05]} Be7 {[%emt 0:02:17] A strong pair of Bishops.} (33... Qb1 $19 34. Qc3 h5) 34. Bc3 {[%emt 0:02:31]} Bd5 {[%emt 0:06:35] Black is much more active.} 35. Qe2 {[%emt 0:02:29]} Qb1 {[%emt 0:03:17]} (35... Qb3 $142 36. Qd2 Ba8) 36. Qc2 {[%emt 0:01:51]} Qb3 {[%emt 0:02:08]} 37. Qxb3 {[%emt 0:04:06]} cxb3 {[%emt 0:00:07][%mdl 4096] Endgame KBB-KBN} 38. Nd3 {[%emt 0:00:07]} Kf8 {[%emt 0:01:05]} 39. g3 {[%emt 0:00:53]} Ke8 {[%emt 0:01:45]} 40. Nc5 {[%emt 0:01:24]} h6 {[%emt 0:03:55]} 41. h4 {[%emt 0:45:53]} Kd8 {[%emt 0:42:14]} 42. Ke3 {[%emt 0:00:13]} Kc7 {[%emt 0:00:27]} 43. Kd2 $1 {[%emt 0:05:15]} Kc6 {[%emt 0:03:15]} 44. Bb2 {[%emt 0:03:37]} g5 {[%emt 0:05:36]} 45. hxg5 {[%emt 0:00:00] This move loses the game for White.} (45. fxg5 $15 hxg5 46. h5) 45... hxg5 $19 {[%emt 0:00:00]} 46. Kc3 $2 {[%emt 0:00:00] [#]} (46. Ke3) 46... gxf4 $1 {[%emt 0:00:00]} 47. gxf4 {[%emt 0:00:00] [#]} Bh4 $1 {[%emt 0:00:00]} 48. Nxb3 {[%emt 0:00:00]} (48. Kd2 $19 Bg3 49. Ke3) 48... Bxb3 {[%emt 0:00:00]} 49. Kxb3 {[%emt 0:00:00] KB-KB} Kd5 {[%emt 0:00:00] ( -> ...Bf2)} 50. Kc2 {[%emt 0:00:00]} Bg3 {[%emt 0:00:00] Black mates.} 51. Kd3 {[%emt 0:00:00]} Bxf4 {[%emt 0:00:00]} 52. Bc3 {[%emt 0:00:00]} Bc1 {[%emt 0:00:00]} 53. Be1 {[%emt 0:00:00]} Bb2 {[%emt 0:00:00]} 54. Bf2 {[%emt 0:00:00]} f4 {[%emt 0:00:00]} 55. Bg1 {[%emt 0:00:00]} Ba3 {[%emt 0:00:00]} 56. Kc3 {[%emt 0:00:00]} Ke4 {[%emt 0:00:00]} 57. Bf2 {[%emt 0:00:00]} Bc1 {[%emt 0:00:00]} 58. d5 {[%emt 0:00:00]} Kxd5 {[%emt 0:00:00]} 59. Kd3 {[%emt 0:00:00]} Bb2 {[%emt 0:00:00]} 60. Bc5 {[%emt 0:00:00]} Bxe5 {[%emt 0:00:00]} 61. Bf2 {[%emt 0:00:00]} f3 {[%emt 0:00:00][%cal Bf4f3,Bf3f2][%mdl 32]} 62. Bh4 {[%emt 0:00:00]} Bd4 {[%emt 0:00:00]} 63. Be7 {[%emt 0:00:00]} Bf2 {[%emt 0:00:00]} 64. Bf8 {[%emt 0:00:00]} Be1 {[%emt 0:00:00]} 65. Bc5 {[%emt 0:00:46]} f2 {[%emt 0:00:00]} 66. Ke2 {[%emt 0:00:03]} Kc4 {[%emt 0:00:00] Weighted Error Value: White=0.39/Black=0.09 (flawless)} 0-1

[Event "4NCL 2022-2023"]
[Site "Daventry"]
[Date "2023.03.18"]
[Round "7.40"]
[White "Stoyanov, Viktor"]
[Black "Burnett, Jim"]
[Result "1-0"]
[ECO "E09"]
[WhiteElo "2243"]
[BlackElo "2042"]
[Annotator "TA"]
[PlyCount "107"]
[EventDate "2022.10.20"]
[EventType "team-tourn"]
[EventCountry "ENG"]
[SourceTitle "playchess.com"]
[Source "ChessBase"]
[SourceQuality "1"]
[TimeControl "40/6000+30:2400+30"]

{[%evp 20,107,39,35,50,33,32,24,35,22,21,26,28,0,0,0,0,0,0,0,0,0,0,0,0,0,0,0,0,0,43,6,7,2,4,0,0,-8,0,0,0,0,-7,-13,-12,-12,-6,-12,16,11,11,12,16,20,22,16,40,28,20,4,4,4,5,6,8,5,21,5,85,48,135,102,108,0,162,153,458,442,575,565,557,555,725,742,679,643,2358,2302,1973,1993]} 1. c4 {[%emt 0:01:20] ChessBase II} e6 {[%emt 0:00:06]} 2. g3 {[%emt 0:00:26]} d5 {[%emt 0:00:09]} 3. Bg2 {[%emt 0:00:11]} c6 {[%emt 0:00:20]} 4. Qc2 {[%emt 0:01:54]} Nf6 {[%emt 0:00:21]} 5. Nf3 {[%emt 0:00:06]} Be7 {[%emt 0:00:11]} 6. O-O {[%emt 0:00:12]} O-O {[%emt 0:00:06]} 7. d4 {[%emt 0:00:06]} Nbd7 {[%emt 0:00:39]} 8. Nbd2 {[%emt 0:00:32]} b6 {[%emt 0:00:18]} 9. e4 {[%emt 0:02:15]} Ba6 {[%emt 0:01:01] 9...dxc4 is becoming the main line.} 10. b3 {[%emt 1:38:28]} Rc8 {[%emt 0:00:18]} 11. Bb2 {[%emt 0:00:00]} Qc7 {[%emt 0:00:34] E09: Closed Catalan: Main Line: 7 Qc2 c6 8 Nbd2.} 12. Rfe1 {[%emt 0:00:00]} (12. e5 $5 {[%cal Re5f6]} Ng4 13. Rfc1 $14) 12... Rfd8 {[%emt 0:04:10]} 13. Rac1 {[%emt 0:00:00]} Qb8 {[%emt 0:00:27] [#] White has an edge.} 14. h4 $146 {[%emt 0:00:00]} ({Predecessor:} 14. Qb1 Bb7 15. h4 a5 16. e5 Ne8 17. cxd5 cxd5 18. Ng5 Nf8 19. Bf1 Rxc1 20. Rxc1 {½-½ Bluebaum,M (2589)-Huss,A (2349) Martigny op 24th 2015 (3)}) 14... h6 {[%emt 0:05:29]} 15. e5 {[%emt 0:00:00]} Ne8 {[%emt 0:00:44]} 16. a3 {[%emt 0:00:00]} Nc7 {[%emt 0:01:25]} 17. Bf1 {[%emt 0:00:00]} Bb7 {[%emt 0:01:34]} 18. cxd5 {[%emt 0:00:00]} Nxd5 {[%emt 0:06:00]} 19. Qe4 {[%emt 0:00:00]} c5 {[%emt 0:02:23]} 20. Bd3 {[%emt 0:00:00] [#] White wants to mate with Qh7+.} Nf8 {[%emt 0:02:36][%cal Od5b4] Wards off Qh7+} 21. Qe2 {[%emt 0:00:00]} cxd4 {[%emt 0:02:18]} 22. Nxd4 {[%emt 0:00:00]} Rxc1 {[%emt 0:01:27]} 23. Rxc1 {[%emt 0:00:00]} Rc8 {[%emt 0:00:05]} 24. Nc4 {[%emt 0:00:00]} Qc7 {[%emt 0:06:52]} 25. Qe1 {[%emt 0:00:00][%cal Oc4d6] Black must now prevent Nd6!} ({Not} 25. Nd6 $2 Qxc1+ 26. Bxc1 Rxc1+ 27. Kh2 Nc3 28. Nxb7 Nxe2 29. Nxe2 Rd1 $19) (25. Nb5 $5 {[%cal Rb5c7]} Nf4 26. Nxc7 (26. gxf4 Qc6 $11) 26... Nxe2+ 27. Bxe2 Rxc7 28. b4 $14) 25... Qd8 {[%emt 0:02:03] Dodges Nd6} 26. Be4 {[%emt 0:00:00]} a6 {[%emt 0:05:24] Prevents Nb5} 27. Rd1 {[%emt 0:00:00]} Qc7 {[%emt 0:03:09]} 28. Bg2 {[%emt 0:00:00]} Ba8 {[%emt 0:05:43]} 29. Rc1 {[%emt 0:00:00][%cal Oc4b6] [#] Threatens to win with Nxb6!} Qd8 {[%emt 0:02:42]} 30. Nd2 {[%emt 0:00:00]} Nd7 {[%emt 0:04:15]} 31. b4 {[%emt 0:00:00]} b5 {[%emt 0:03:04]} 32. N4b3 {[%emt 0:00:00]} Rxc1 {[%emt 0:03:50]} 33. Qxc1 {[%emt 0:00:00]} Qc7 {[%emt 0:00:51]} 34. Qxc7 {[%emt 0:00:10]} Nxc7 {[%emt 0:02:06]} 35. Bd4 {[%emt 0:01:02]} Bxg2 {[%emt 0:02:14]} 36. Kxg2 {[%emt 0:00:10]} Kf8 {[%emt 0:01:02]} 37. Na5 {[%emt 0:01:09]} f6 {[%emt 0:05:08]} 38. Nc6 {[%emt 0:02:37]} fxe5 {[%emt 0:02:00]} 39. Nxe5 {[%emt 0:00:12]} Nxe5 {[%emt 0:01:10]} 40. Bxe5 $11 {[%emt 0:00:02][%mdl 4096] Endgame KBN-KBN} Nd5 {[%emt 0:00:30]} 41. Kf3 {[%emt 0:41:49]} g6 {[%emt 0:40:40]} 42. Bd4 {[%emt 0:01:15]} Ke8 {[%emt 0:02:24]} 43. Ke4 {[%emt 0:00:45]} Kd7 {[%emt 0:00:18]} (43... Nf6+ $11 {keeps the balance.} 44. Kf3 Nd7) 44. Nf3 {[%emt 0:01:01] Ne5+ would be deadly.} Bd6 {[%emt 0:00:42]} (44... Ke8 $14) 45. Be5 {[%emt 0:01:00]} Bf8 {[%emt 0:00:21]} 46. Bd4 {[%emt 0:03:08] Against Nb6} (46. Bh8 $16) 46... Bd6 $18 {[%emt 0:00:44]} 47. Ne5+ {[%emt 0:00:00]} Kc7 $2 {[%emt 0:00:00] This costs Black the game.} (47... Bxe5 $16 {is a better chance.} 48. Kxe5 (48. Bxe5 Nb6 $14) 48... Ke7 49. Bc5+ Kf7) 48. Nxg6 {[%emt 0:00:00] White is clearly winning.} a5 {[%emt 0:00:00]} 49. bxa5 {[%emt 0:00:00]} Bxa3 {[%emt 0:00:00]} 50. a6 {[%emt 0:00:00]} Bd6 {[%emt 0:00:00]} 51. g4 {[%emt 0:00:00]} b4 {[%emt 0:00:00]} 52. Kd3 {[%emt 0:00:00]} Nf4+ {[%emt 0:00:00]} 53. Nxf4 {[%emt 0:00:00]} Bxf4 {[%emt 0:00:00]} 54. Be3 {[%emt 0:00:00] Weighted Error Value: White=0.09 (flawless) /Black=0.22 (precise)} 1-0

[Event "4NCL 2022-2023"]
[Site "Daventry"]
[Date "2023.03.18"]
[Round "7.41"]
[White "Ledger, Andrew J"]
[Black "Freeman, Gordon"]
[Result "0-1"]
[ECO "D07"]
[WhiteElo "2313"]
[BlackElo "2094"]
[Annotator "TA"]
[PlyCount "90"]
[EventDate "2022.10.20"]
[EventType "team-tourn"]
[EventCountry "ENG"]
[SourceTitle "playchess.com"]
[Source "ChessBase"]
[SourceQuality "1"]
[TimeControl "40/6000+30:2400+30"]

{[%evp 9,90,0,10,1,16,16,12,17,16,0,0,-3,18,18,11,20,21,0,0,0,0,0,12,0,0,0,0,-131,-135,-153,-118,-150,-122,-152,-148,-161,-158,-159,-158,-154,-148,-175,-174,-170,-168,-169,-134,-312,-316,-319,-302,-400,-395,-365,-237,-216,-171,-206,0,-149,0,-151,-158,-211,-206,-241,-241,-272,-225,-349,-198,-189,0,-345,-219,-218,-211,-333,6,6,5,-2948,-2760]} 1. d4 {[%emt 0:00:04]} d5 {[%emt 0:00:12]} 2. c4 {[%emt 0:00:10]} Nc6 {[%emt 0:00:27]} 3. Nc3 {[%emt 0:01:22]} Nf6 {[%emt 0:00:43]} 4. cxd5 {[%emt 0:01:02]} Nxd5 {[%emt 0:00:09]} 5. Nf3 {[%emt 0:00:06]} e5 {[%emt 0:02:33]} 6. dxe5 {[%emt 0:00:42] D07: Queen's Gambit: Chigorin Defence.} Bb4 {[%emt 0:01:40]} 7. Bd2 {[%emt 0:00:39]} (7. Qc2 {feels hotter.} Qe7 8. Bg5 Qc5 9. Rc1) 7... Nxc3 {[%emt 0:02:24]} 8. bxc3 {[%emt 0:00:12] The position is equal.} Ba5 {[%emt 0:01:22]} 9. e3 {[%emt 0:03:17]} O-O {[%emt 0:02:37]} 10. Qa4 {[%emt 0:06:46]} Bb6 {[%emt 0:10:43]} 11. c4 {[%emt 0:13:29]} Qe7 {[%emt 0:09:29]} 12. Bc3 {[%emt 0:01:44]} Bg4 {[%emt 0:04:04] [#]} 13. Be2 $146 {[%emt 0:21:02]} ({Predecessor:} 13. Qc2 Ba5 14. Bxa5 Nxa5 15. Be2 Rad8 16. O-O Nc6 17. h3 Bh5 18. Qf5 Bxf3 19. Bxf3 Nxe5 20. Bxb7 {½-½ Greet,A (2460)-Kahl,F (2393) SM-2017-0-00384}) 13... Bxf3 {[%emt 0:04:50]} 14. Bxf3 {[%emt 0:02:41]} Nxe5 {[%emt 0:01:47][%cal Bc6e5,Be5d3,Bd3c1][%mdl 32]} 15. Be2 {[%emt 0:00:12] Repels Nd3+} (15. Bxb7 $2 Nd3+ 16. Kf1 Nxf2 $19) 15... Rad8 {[%emt 0:04:34] aiming for ...Nd3+.} 16. O-O {[%emt 0:00:29]} Nd3 {[%emt 0:17:06][%cal Od3f2] Prevents Qb4.} 17. Qc2 {[%emt 0:01:33]} Qe4 {[%emt 0:06:28][%cal Od3f2] Threatens to win with ...Nxf2!} 18. Rac1 {[%emt 0:15:37]} (18. Bxd3 $11 {keeps the balance.} Qxd3 19. Qb3) 18... Nxc1 $17 {[%emt 0:04:30]} (18... Qxc4 $2 19. Rfd1 $18) 19. Qxc1 {[%emt 0:01:37]} f6 {[%emt 0:17:26]} 20. Qb2 {[%emt 0:02:25]} Rfe8 {[%emt 0:02:46]} 21. Rc1 {[%emt 0:01:03]} Qf5 {[%emt 0:05:13]} ({Stronger than} 21... Bxe3 22. fxe3 Qxe3+ 23. Kf1 $17) 22. Bf3 {[%emt 0:03:12]} c6 {[%emt 0:02:02]} 23. h3 {[%emt 0:03:15]} Re7 {[%emt 0:01:33]} 24. Bg4 {[%emt 0:02:44]} Qg5 {[%emt 0:01:31][%cal Oe7e3]} 25. Kh1 {[%emt 0:00:51]} h5 {[%emt 0:01:24]} 26. Bf3 {[%emt 0:00:04]} Red7 {[%emt 0:00:49]} 27. Qb3 {[%emt 0:00:54] And now c5+ would win.} Kh8 {[%emt 0:00:58]} 28. Rd1 $2 {[%emt 0:03:47]} (28. Qb1 $17 {was worth a try.}) 28... Rxd1+ $19 {[%emt 0:01:00]} 29. Bxd1 {[%emt 0:00:04]} Qf5 {[%emt 0:00:51]} 30. Bf3 {[%emt 0:00:33]} Qd3 {[%emt 0:01:31] ( -> ...Qf1+)} 31. Kg1 {[%emt 0:02:23] Inhibits Qf1+.} h4 {[%emt 0:00:38][%cal Ob6e3] Hoping for ...Bxe3!} 32. Qb2 {[%emt 0:01:23][%cal Oc3f6]} Qd6 {[%emt 0:00:24]} ({Worse is} 32... Qxc4 33. Bxf6 Rd7 34. Bg4 $15) 33. Kf1 {[%emt 0:04:50]} Qd3+ $2 {[%emt 0:01:06]} (33... Rd7 $19 {Strongly threatening ...f5.} 34. Qc2 Qd3+ 35. Qxd3 Rxd3) 34. Be2 {[%emt 0:00:46] A strong pair of Bishops.} (34. Kg1 $1 $11 {was the only way to keep the balance.}) 34... Qd6 {[%emt 0:00:34]} (34... Qf5 $17 35. Kg1 Qg5) 35. Qc2 $2 {[%emt 0:01:48]} ({White has to play} 35. Bf3 $1 $11) 35... Qh2 $17 {[%emt 0:01:10][%cal Rh2h1]} 36. Bf3 {[%emt 0:00:02]} (36. Bg4 $17) 36... Bc5 $19 {[%emt 0:00:40]} 37. Ke2 {[%emt 0:00:32]} Qd6 {[%emt 0:00:26]} 38. Qb1 {[%emt 0:01:58]} a6 {[%emt 0:00:33][%cal Of6f5]} 39. Ke1 {[%emt 0:01:11]} (39. Be4 $142) 39... Qh2 {[%emt 0:00:59]} (39... Qd3 $142 40. Qa1 Qxc4) 40. Ke2 {[%emt 0:00:53] [#]} Qd6 $2 {[%emt 0:00:15]} (40... Qc7 $1 41. Bh5 Kg8) 41. Ke1 $1 {[%emt 0:40:08]} b5 {[%emt 0:09:17]} 42. cxb5 {[%emt 0:00:00]} cxb5 $40 {[%emt 0:02:18][%mdl 128] Black has strong attack.} (42... axb5 $2 {is the wrong capture.} 43. Kf1) 43. Qf5 {[%emt 0:00:00]} (43. Qe4 {is a better defense.}) 43... b4 $2 {[%emt 0:07:31]} ({Better is} 43... Bb4 $19 44. Qh5+ Kg8 45. Qd5+ Qxd5 46. Bxd5+ Rxd5 47. Bxb4 Kf7) 44. Qh5+ $11 {[%emt 0:00:00]} Kg8 {[%emt 0:00:11] [#]} 45. Be4 $2 {[%emt 0:00:00][%mdl 8192]} bxc3 {[%emt 0:02:02] Weighted Error Value: White=0.49/Black=0.48} 0-1

[Event "4NCL 2022-2023"]
[Site "Daventry"]
[Date "2023.03.18"]
[Round "7.42"]
[White "Delaney, Killian"]
[Black "Ansell, Simon T"]
[Result "1/2-1/2"]
[ECO "A11"]
[WhiteElo "2300"]
[BlackElo "2345"]
[Annotator "TA"]
[PlyCount "49"]
[EventDate "2022.10.20"]
[EventType "team-tourn"]
[EventCountry "ENG"]
[SourceTitle "playchess.com"]
[Source "ChessBase"]
[SourceQuality "1"]
[TimeControl "40/6000+30:2400+30"]

{[%evp 9,49,-13,-8,-41,0,-1,1,-24,-21,-32,-14,-25,-40,-66,-11,-56,-70,-39,-49,-102,-99,-99,-93,-100,-95,-154,-153,-152,-58,-43,-48,-124,-3,-6,-2,-6,-8,-51,-62,-45,-39,-112]} 1. Nf3 {[%emt 0:00:04]} d5 {[%emt 0:01:01]} 2. c4 {[%emt 0:00:15]} c6 {[%emt 0:00:04]} 3. e3 {[%emt 0:00:16]} Nf6 {[%emt 0:00:49]} 4. Nc3 {[%emt 0:00:21]} a6 {[%emt 0:06:24]} 5. Qb3 {[%emt 0:05:34]} e6 {[%emt 0:02:39]} 6. a4 {[%emt 0:00:44] A11: English Opening: 1...c6.} Nbd7 {[%emt 0:00:43]} 7. d4 {[%emt 0:00:55]} Bd6 {[%emt 0:05:03]} 8. Bd2 {[%emt 0:08:24] The position is equal.} O-O {[%emt 0:09:14]} 9. Bd3 {[%emt 0:16:45] [#]} Qe7 $146 {[%emt 0:03:35]} (9... dxc4 {feels hotter.} 10. Qxc4 e5 11. O-O Nb6) ({Predecessor:} 9... dxc4 10. Qxc4 e5 11. Bc2 Re8 12. Rd1 Qc7 13. h3 b5 14. Qb3 c5 15. dxe5 Nxe5 16. axb5 {½-½ Neidig,S (2232)-Andre,G (2317) Oberliga Ost-A 0304 2003 (3.1)}) 10. h3 {[%emt 0:12:42]} dxc4 {[%emt 0:13:59]} 11. Bxc4 {[%emt 0:00:16]} e5 {[%emt 0:00:09]} (11... b5 $15 12. Bd3 Bb7) 12. dxe5 {[%emt 0:15:28]} (12. O-O {looks sharper.} e4 13. Ng5 h6 14. Nxf7 Rxf7 15. f3) 12... Nxe5 {[%emt 0:00:52]} 13. Nxe5 {[%emt 0:00:08]} Qxe5 {[%emt 1:02:28]} 14. f4 {[%emt 0:02:05]} (14. Bd3 $15) 14... Qe7 $17 {[%emt 0:00:00]} 15. O-O {[%emt 0:00:21]} Bf5 {[%emt 0:00:00] Dodges Qc2} 16. a5 {[%emt 0:08:57]} Rad8 {[%emt 0:00:00]} 17. Rae1 {[%emt 0:00:11]} ({Better is} 17. Na4) 17... Bc5 {[%emt 0:00:00]} 18. Rf2 {[%emt 0:02:34]} Ne4 {[%emt 0:00:00]} (18... Rd6 $17 19. Bc1 Rfd8) 19. Nxe4 $15 {[%emt 0:00:13]} Bxe4 {[%emt 0:00:00]} 20. f5 {[%emt 0:03:50]} (20. Qc3 $15) 20... Qh4 {[%emt 0:00:00]} (20... Bd6 $17 {And now ...Bg3 would win.} 21. Rd1 Bg3) 21. Bb4 $11 {[%emt 0:03:46]} Bxb4 {[%emt 0:00:00]} 22. Qxb4 {[%emt 0:00:07]} Bd5 {[%emt 0:00:00]} 23. e4 {[%emt 0:05:17]} Bxc4 {[%emt 0:00:00]} 24. Qxc4 {[%emt 0:00:05]} Rfe8 {[%emt 0:00:00]} 25. Qb3 {[%emt 0:07:12] Weighted Error Value: White=0.23 (precise) /Black=0.23 (precise)} (25. Qb4 $15) 1/2-1/2

[Event "4NCL 2022-2023"]
[Site "Daventry"]
[Date "2023.03.18"]
[Round "7.43"]
[White "Gormally, Daniel W"]
[Black "Wall, Gavin"]
[Result "0-1"]
[ECO "C41"]
[WhiteElo "2448"]
[BlackElo "2290"]
[Annotator "TA"]
[PlyCount "78"]
[EventDate "2022.10.20"]
[EventType "team-tourn"]
[EventCountry "ENG"]
[SourceTitle "playchess.com"]
[Source "ChessBase"]
[SourceQuality "1"]
[TimeControl "40/6000+30:2400+30"]

{[%evp 17,78,66,57,25,26,0,8,8,11,11,42,33,111,88,99,0,0,0,0,0,0,0,0,0,12,-65,-77,-82,-79,-82,-80,-93,-91,-130,-65,-79,-81,-77,-66,-64,-80,-91,-110,-132,-141,-141,-141,-126,-127,-279,-294,-277,-279,-425,-419,-410,-408,-405,-401,-397,-389,-366,-366]} 1. e4 {[%emt 0:00:06]} e5 {[%emt 0:00:24]} 2. Nf3 {[%emt 0:00:09]} d6 {[%emt 0:00:12]} 3. d4 {[%emt 0:00:11]} exd4 {[%emt 0:00:07]} 4. Nxd4 {[%emt 0:00:19]} Nf6 {[%emt 0:00:10]} 5. Nc3 {[%emt 0:00:08]} Be7 {[%emt 0:00:03]} 6. Bf4 {[%emt 0:00:08]} O-O {[%emt 0:00:22]} 7. Qd2 {[%emt 0:00:47]} Nc6 {[%emt 0:00:06]} 8. O-O-O {[%emt 0:01:16]} Nxd4 {[%emt 0:00:07]} 9. Qxd4 {[%emt 0:00:05]} Be6 {[%emt 0:00:17] [#]} 10. Qe3 $146 {[%emt 0:01:20] C41: Philidor Defence.} ({Predecessor:} 10. f3 a6 11. g4 b5 12. Kb1 c5 13. Qd2 b4 14. Nd5 Nxd5 15. exd5 Bd7 16. h4 a5 17. Bd3 a4 18. g5 Re8 {0-1 Ter Sahakyan,S (2605)-Dubov,D (2708) Titled Tuesday intern op 15th Nov Early blitz 2022 (11)}) 10... Ng4 {[%emt 0:02:00]} 11. Qf3 {[%emt 0:05:53]} Bf6 {[%emt 0:04:08][%cal Be7f6,Bf6c3,Bc3e5][%mdl 32]} 12. h3 {[%emt 0:00:34] The position is equal.} Ne5 {[%emt 0:00:05]} 13. Qg3 {[%emt 0:02:10]} Qe8 {[%emt 0:08:22]} 14. h4 {[%emt 0:03:48]} Qc6 {[%emt 0:22:46]} (14... a6 $14) 15. Bg5 $1 $16 {[%emt 0:08:42]} Ng4 {[%emt 0:00:30] Threatens to win with ...Bxc3.} 16. Be2 {[%emt 0:12:55]} (16. Nd5 $1 $16 {[%cal Rd5f6]} Bxd5 17. Rxd5) 16... Bxc3 $11 {[%emt 0:02:13]} 17. Bxg4 {[%emt 0:08:18]} Be5 $36 {[%emt 0:03:53][%mdl 2048] Black is more active.} (17... Qxe4 18. Bxe6 (18. Qxc3 Qxg4 19. f3 Qg3 $17) 18... Bxb2+ 19. Kxb2 $18) 18. f4 {[%emt 0:02:04]} Bxg4 {[%emt 0:00:52]} (18... Qxe4 $2 19. Bxe6 Bxf4+ 20. Bxf4 $18) 19. Qxg4 {[%emt 0:00:13]} Qxe4 {[%emt 0:00:09]} 20. Qg3 {[%emt 0:00:46]} f6 {[%emt 0:01:48]} ({Resist} 20... Bd4 21. Rhe1 Qf5 22. Rxd4 $16) 21. Bh6 {[%emt 0:11:54] [#]} (21. fxe5 $11 fxg5 22. exd6 cxd6 23. hxg5) 21... Bxb2+ $1 $15 {[%emt 0:01:26]} 22. Kxb2 {[%emt 0:00:37][%csl Gh6][%cal Rg3g7] [#]} Qg6 {[%emt 0:00:03]} 23. Bg5 {[%emt 0:01:12]} fxg5 {[%emt 0:00:08]} 24. hxg5 {[%emt 0:00:03]} Rae8 {[%emt 0:02:24]} 25. Rh4 {[%emt 0:02:34]} Re4 {[%emt 0:05:32]} (25... Rf5 $17 26. Qb3+ Qf7) 26. Qb3+ {[%emt 0:09:04]} Qf7 {[%emt 0:04:41] Hoping for ...Qxb3+.} 27. Qxb7 {[%emt 0:01:26]} Rxf4 {[%emt 0:06:15]} 28. Rxf4 {[%emt 0:00:06]} Qxf4 {[%emt 0:00:02]} 29. Qxc7 $17 {[%emt 0:01:07][%mdl 4096] Endgame KQR-KQR} Qe5+ {[%emt 0:03:14]} 30. Kb1 {[%emt 0:02:58]} Qb5+ {[%emt 0:00:49]} 31. Ka1 {[%emt 0:00:04] [#]} Rb8 $1 {[%emt 0:00:22][%csl Gb8][%cal Rb5b2]} ({Not} 31... Qxg5 32. Qc4+ Kh8 33. Qd5 Qf6+ 34. Qd4 $17) 32. Qc3 {[%emt 0:00:03] Wards off Qb2+} Qxg5 {[%emt 0:00:28]} 33. Re1 $2 {[%emt 0:06:00] This costs White the game.} (33. Rb1 $17 Rf8 34. g3) 33... Qxg2 $19 {[%emt 0:04:25]} 34. Qc4+ {[%emt 0:00:04]} d5 {[%emt 0:00:21]} 35. Qd4 {[%emt 0:05:48]} (35. Qc3 $142 Qg5 36. Qd4) 35... Qxc2 {[%emt 0:02:20]} 36. Qxd5+ {[%emt 0:00:04] Black is winning.} Kh8 {[%emt 0:00:05][%csl Gb8][%cal Rc2b2]} 37. Qe5 {[%emt 0:00:03] Inhibits Qb2+.} Rg8 {[%emt 0:00:44]} 38. Rg1 {[%emt 0:00:09]} h6 {[%emt 0:00:58]} 39. Qd4 {[%emt 0:02:30]} a5 {[%emt 0:01:17] Weighted Error Value: White=0.25 (precise) /Black=0.08 (flawless)} 0-1